[Event "*** Titled Tuesday Blitz"]
[Site "Chess.com"]
[Date "2019.10.01"]
[Round "2"]
[White "2165149677570"]
[Black "jedipredator"]
[Result "1-0"]
[WhiteElo "2297"]
[BlackElo "2509"]
[TimeControl "180+2"]
[EndTime "13:22:28 PDT"]
[Termination "2165149677570 won by resignation"]

1. e4 {[%clk 0:02:40.8]} 1... e5 {[%clk 0:02:55.9]} 2. Nf3 {[%clk 0:02:41.2]}
2... Nc6 {[%clk 0:02:54.9]} 3. Bb5 {[%clk 0:02:41.5]} 3... a6 {[%clk 0:02:54.5]}
4. Ba4 {[%clk 0:02:42.5]} 4... Nf6 {[%clk 0:02:55.5]} 5. O-O {[%clk 0:02:43.6]}
5... Be7 {[%clk 0:02:55.3]} 6. Re1 {[%clk 0:02:44.9]} 6... b5 {[%clk 0:02:56.4]}
7. Bb3 {[%clk 0:02:46.5]} 7... O-O {[%clk 0:02:57.9]} 8. d4 {[%clk 0:02:48]}
8... d6 {[%clk 0:02:57.2]} 9. c3 {[%clk 0:02:44.2]} 9... Bg4 {[%clk 0:02:55.8]}
10. d5 {[%clk 0:02:45.7]} 10... Na5 {[%clk 0:02:55.9]} 11. Bc2 {[%clk
0:02:47.3]} 11... c6 {[%clk 0:02:57]} 12. Nbd2 {[%clk 0:02:48.9]} 12... cxd5
{[%clk 0:02:50.7]} 13. exd5 {[%clk 0:02:50.8]} 13... Nxd5 {[%clk 0:02:50.8]} 14.
Be4 {[%clk 0:02:50.3]} 14... Be6 {[%clk 0:02:42.9]} 15. Nb3 {[%clk 0:02:43.5]}
15... Nxb3 {[%clk 0:02:39.1]} 16. axb3 {[%clk 0:02:42.7]} 16... Nf6 {[%clk
0:02:35.8]} 17. Bxa8 {[%clk 0:02:42]} 17... Qxa8 {[%clk 0:02:37.7]} 18. Bg5
{[%clk 0:02:16.7]} 18... Rd8 {[%clk 0:02:33.9]} 19. Nd2 {[%clk 0:02:12.3]} 19...
h6 {[%clk 0:02:26.8]} 20. Bxf6 {[%clk 0:02:02]} 20... Bxf6 {[%clk 0:02:28.7]}
21. Ne4 {[%clk 0:02:01.4]} 21... Be7 {[%clk 0:02:25.3]} 22. b4 {[%clk
0:01:59.5]} 22... f5 {[%clk 0:02:10.1]} 23. Nd2 {[%clk 0:01:44.5]} 23... Bf6
{[%clk 0:02:04.3]} 24. Qf3 {[%clk 0:01:36.9]} 24... Bd5 {[%clk 0:02:01.4]} 25.
Qxf5 {[%clk 0:01:34.8]} 25... Bxg2 {[%clk 0:01:57.8]} 26. f3 {[%clk 0:01:32.2]}
26... Bg5 {[%clk 0:01:47.6]} 27. Ne4 {[%clk 0:01:26.1]} 27... Bxf3 {[%clk
0:01:24]} 28. Qxf3 {[%clk 0:01:22.6]} 28... Rf8 {[%clk 0:01:24.7]} 29. Qg4
{[%clk 0:01:10.7]} 29... Rf4 {[%clk 0:01:10.5]} 30. Qe6+ {[%clk 0:01:09.8]}
30... Kh8 {[%clk 0:01:11.4]} 31. Nxg5 {[%clk 0:01:06]} 31... hxg5 {[%clk
0:01:08.9]} 32. Re3 {[%clk 0:00:56.3]} 32... g4 {[%clk 0:01:02.9]} 33. Qxd6
{[%clk 0:00:42.9]} 33... Rf3 {[%clk 0:00:23.5]} 34. Qxe5 {[%clk 0:00:37]} 34...
Qa7 {[%clk 0:00:14.9]} 35. Re1 {[%clk 0:00:29]} 35... g3 {[%clk 0:00:13.6]} 36.
Qe8+ {[%clk 0:00:25.8]} 36... Kh7 {[%clk 0:00:13.4]} 37. Qh5+ {[%clk 0:00:27]}
37... Kg8 {[%clk 0:00:14.5]} 38. Qxf3 {[%clk 0:00:28.2]} 1-0

[Event "*** Titled Tuesday Blitz"]
[Site "Chess.com"]
[Date "2019.10.01"]
[Round "2"]
[White "ChessLover0108"]
[Black "Caisachess"]
[Result "1-0"]
[WhiteElo "2725"]
[BlackElo "2352"]
[TimeControl "180+2"]
[EndTime "13:22:30 PDT"]
[Termination "ChessLover0108 won by resignation"]

1. d4 {[%clk 0:03:01.9]} 1... Nf6 {[%clk 0:03:00.1]} 2. c4 {[%clk 0:03:01.4]}
2... e6 {[%clk 0:03:01.6]} 3. Nf3 {[%clk 0:03:00.4]} 3... d5 {[%clk 0:03:03]} 4.
Nc3 {[%clk 0:03:01.3]} 4... c5 {[%clk 0:03:03.7]} 5. cxd5 {[%clk 0:03:00.9]}
5... Nxd5 {[%clk 0:03:04.8]} 6. e4 {[%clk 0:03:01.6]} 6... Nxc3 {[%clk
0:03:06.3]} 7. bxc3 {[%clk 0:03:03.5]} 7... cxd4 {[%clk 0:03:07.8]} 8. cxd4
{[%clk 0:03:05.4]} 8... Bb4+ {[%clk 0:03:07.8]} 9. Bd2 {[%clk 0:03:07]} 9...
Bxd2+ {[%clk 0:03:09.3]} 10. Qxd2 {[%clk 0:03:08.9]} 10... O-O {[%clk
0:03:10.7]} 11. Bc4 {[%clk 0:03:10.6]} 11... b6 {[%clk 0:03:11.2]} 12. O-O
{[%clk 0:03:12]} 12... Bb7 {[%clk 0:03:12.7]} 13. Rfe1 {[%clk 0:03:12.9]} 13...
Nd7 {[%clk 0:03:14]} 14. Rad1 {[%clk 0:03:14.4]} 14... Nf6 {[%clk 0:03:15]} 15.
Qf4 {[%clk 0:03:09.8]} 15... Rc8 {[%clk 0:02:56.7]} 16. Bb3 {[%clk 0:03:08.7]}
16... Nh5 {[%clk 0:02:48]} 17. Qe5 {[%clk 0:03:02.3]} 17... g6 {[%clk
0:02:44.4]} 18. d5 {[%clk 0:03:02.1]} 18... exd5 {[%clk 0:02:41.2]} 19. exd5
{[%clk 0:03:00.6]} 19... Re8 {[%clk 0:02:30.6]} 20. Qd4 {[%clk 0:02:23.1]} 20...
Rxe1+ {[%clk 0:02:28.1]} 21. Rxe1 {[%clk 0:02:25]} 21... Qd6 {[%clk 0:02:27.8]}
22. h3 {[%clk 0:02:18.9]} 22... Rd8 {[%clk 0:02:25.8]} 23. Ne5 {[%clk
0:02:10.8]} 23... Re8 {[%clk 0:02:13]} 24. Re3 {[%clk 0:02:07.6]} 24... Ng7
{[%clk 0:01:49.4]} 25. Ng4 {[%clk 0:01:19.5]} 25... Rxe3 {[%clk 0:01:44.7]} 26.
Nh6+ {[%clk 0:01:19.9]} 26... Kf8 {[%clk 0:01:43.4]} 27. fxe3 {[%clk 0:01:20.4]}
27... f6 {[%clk 0:01:24.1]} 28. e4 {[%clk 0:01:12.5]} 28... Ke7 {[%clk
0:01:20.6]} 29. Ng8+ {[%clk 0:00:39.4]} 29... Kf7 {[%clk 0:01:12.9]} 30. Nxf6
{[%clk 0:00:26.3]} 30... Qxf6 {[%clk 0:01:11.5]} 31. e5 {[%clk 0:00:24.5]} 31...
Qd8 {[%clk 0:00:50.2]} 32. d6+ {[%clk 0:00:21]} 32... Ke8 {[%clk 0:00:30]} 33.
e6 {[%clk 0:00:13.4]} 33... Nxe6 {[%clk 0:00:20.8]} 34. Bxe6 {[%clk 0:00:13.6]}
1-0

[Event "*** Titled Tuesday Blitz"]
[Site "Chess.com"]
[Date "2019.10.01"]
[Round "2"]
[White "PotapovaM"]
[Black "Perecke"]
[Result "1-0"]
[WhiteElo "2440"]
[BlackElo "2108"]
[TimeControl "180+2"]
[EndTime "13:22:34 PDT"]
[Termination "PotapovaM won by resignation"]

1. d4 {[%clk 0:03:01.9]} 1... d5 {[%clk 0:02:57.7]} 2. c4 {[%clk 0:03:03]} 2...
e6 {[%clk 0:02:58.5]} 3. Nc3 {[%clk 0:03:03.9]} 3... Nf6 {[%clk 0:02:56.1]} 4.
Nf3 {[%clk 0:03:04.8]} 4... Be7 {[%clk 0:02:57.1]} 5. Bf4 {[%clk 0:03:05.6]}
5... O-O {[%clk 0:02:57.1]} 6. e3 {[%clk 0:03:06.7]} 6... Nbd7 {[%clk
0:02:57.6]} 7. h3 {[%clk 0:03:04.7]} 7... c6 {[%clk 0:02:57.6]} 8. c5 {[%clk
0:03:05.5]} 8... Ne4 {[%clk 0:02:53.4]} 9. Nxe4 {[%clk 0:02:45.8]} 9... dxe4
{[%clk 0:02:54.3]} 10. Nd2 {[%clk 0:02:47]} 10... f5 {[%clk 0:02:55.4]} 11. Be2
{[%clk 0:02:42.7]} 11... e5 {[%clk 0:02:31.2]} 12. Bxe5 {[%clk 0:02:11.8]} 12...
Nxe5 {[%clk 0:02:26.2]} 13. dxe5 {[%clk 0:02:13.7]} 13... Bxc5 {[%clk
0:02:27.1]} 14. O-O {[%clk 0:02:11.7]} 14... Qe7 {[%clk 0:02:28.1]} 15. Nc4
{[%clk 0:01:53.4]} 15... Be6 {[%clk 0:02:27.4]} 16. Qc2 {[%clk 0:01:48.9]} 16...
Rfd8 {[%clk 0:02:26.4]} 17. a3 {[%clk 0:01:45.9]} 17... b5 {[%clk 0:02:15.5]}
18. Na5 {[%clk 0:01:44.9]} 18... Rac8 {[%clk 0:00:50.1]} 19. b4 {[%clk
0:01:45.5]} 19... Bb6 {[%clk 0:00:46]} 20. Nxc6 {[%clk 0:01:40.6]} 20... Qe8
{[%clk 0:00:33.9]} 21. Bxb5 {[%clk 0:01:38.4]} 21... a6 {[%clk 0:00:18.6]} 22.
Ba4 {[%clk 0:01:33.8]} 22... Bd7 {[%clk 0:00:14.3]} 23. Rac1 {[%clk 0:01:32.9]}
23... Bxc6 {[%clk 0:00:14.1]} 24. Bxc6 {[%clk 0:01:32]} 24... Qxe5 {[%clk
0:00:15.2]} 25. Rfd1 {[%clk 0:01:16.6]} 25... Rxd1+ {[%clk 0:00:11.3]} 26. Rxd1
{[%clk 0:01:15.6]} 26... Qe6 {[%clk 0:00:08.6]} 27. Bd5 {[%clk 0:01:01.5]} 27...
Rxc2 {[%clk 0:00:08.6]} 28. Bxe6+ {[%clk 0:01:01.5]} 28... Kf8 {[%clk
0:00:10.1]} 29. Bxf5 {[%clk 0:01:01.2]} 29... Rc3 {[%clk 0:00:07.6]} 30. Bxe4
{[%clk 0:00:48.4]} 30... Rxa3 {[%clk 0:00:07.2]} 31. Rb1 {[%clk 0:00:49.7]}
31... Rc3 {[%clk 0:00:06.3]} 32. Bb7 {[%clk 0:00:47.9]} 32... Ra3 {[%clk
0:00:05.5]} 33. g3 {[%clk 0:00:38]} 33... Bc7 {[%clk 0:00:06.1]} 34. Rc1 {[%clk
0:00:35.4]} 34... Bd6 {[%clk 0:00:06.8]} 35. Rc6 {[%clk 0:00:33.5]} 35... Bxb4
{[%clk 0:00:07.8]} 36. Bxa6 {[%clk 0:00:30.4]} 36... Ra1+ {[%clk 0:00:09.2]} 37.
Kg2 {[%clk 0:00:31]} 37... Ra2 {[%clk 0:00:10.5]} 38. Bc4 {[%clk 0:00:23.7]}
38... Be1 {[%clk 0:00:09.2]} 39. Bxa2 {[%clk 0:00:23.8]} 1-0

[Event "*** Titled Tuesday Blitz"]
[Site "Chess.com"]
[Date "2019.10.01"]
[Round "2"]
[White "kreonx"]
[Black "sofaceindisguise"]
[Result "1-0"]
[WhiteElo "2213"]
[BlackElo "2624"]
[TimeControl "180+2"]
[EndTime "13:22:40 PDT"]
[Termination "kreonx won by resignation"]

1. e4 {[%clk 0:03:01.9]} 1... c5 {[%clk 0:03:00.3]} 2. Nc3 {[%clk 0:03:02.2]}
2... d6 {[%clk 0:03:00.4]} 3. g3 {[%clk 0:03:03.6]} 3... g6 {[%clk 0:03:01.3]}
4. Bg2 {[%clk 0:03:05]} 4... Bg7 {[%clk 0:03:03.2]} 5. d3 {[%clk 0:03:06.6]}
5... Nc6 {[%clk 0:03:05.1]} 6. Be3 {[%clk 0:03:08]} 6... Rb8 {[%clk 0:03:05.4]}
7. Qd2 {[%clk 0:03:07.3]} 7... b5 {[%clk 0:03:05.3]} 8. f4 {[%clk 0:03:06.5]}
8... b4 {[%clk 0:03:06.4]} 9. Nd1 {[%clk 0:03:07]} 9... e6 {[%clk 0:03:06.6]}
10. Nf3 {[%clk 0:02:55.9]} 10... Nge7 {[%clk 0:03:00]} 11. O-O {[%clk
0:02:55.8]} 11... O-O {[%clk 0:03:00]} 12. g4 {[%clk 0:02:44.5]} 12... f5 {[%clk
0:02:58.7]} 13. exf5 {[%clk 0:02:41.8]} 13... exf5 {[%clk 0:02:59]} 14. g5
{[%clk 0:02:42]} 14... Be6 {[%clk 0:02:55]} 15. d4 {[%clk 0:02:39]} 15... c4
{[%clk 0:02:40.5]} 16. Bf2 {[%clk 0:02:19.6]} 16... Nd5 {[%clk 0:02:37.7]} 17.
c3 {[%clk 0:02:10.1]} 17... a5 {[%clk 0:02:37.2]} 18. Re1 {[%clk 0:02:06.9]}
18... Bf7 {[%clk 0:02:37.2]} 19. Bg3 {[%clk 0:02:06.2]} 19... Re8 {[%clk
0:02:35.6]} 20. Ne3 {[%clk 0:02:04.1]} 20... Nxe3 {[%clk 0:02:36.1]} 21. Rxe3
{[%clk 0:02:04.3]} 21... Rxe3 {[%clk 0:02:36.9]} 22. Qxe3 {[%clk 0:02:05.3]}
22... Bd5 {[%clk 0:02:38.1]} 23. Nd2 {[%clk 0:01:55.9]} 23... Bxg2 {[%clk
0:02:38.7]} 24. Kxg2 {[%clk 0:01:57]} 24... d5 {[%clk 0:02:35.8]} 25. Qe6+
{[%clk 0:01:57.7]} 25... Kh8 {[%clk 0:02:37.1]} 26. Qxc6 {[%clk 0:01:58.2]}
26... bxc3 {[%clk 0:02:38.3]} 27. bxc3 {[%clk 0:01:58.9]} 27... Rb2 {[%clk
0:02:39.7]} 28. Be1 {[%clk 0:01:52.9]} 28... Qe7 {[%clk 0:02:05.8]} 29. Qxd5
{[%clk 0:01:19.5]} 29... Qe2+ {[%clk 0:01:59.3]} 30. Kg1 {[%clk 0:01:08.9]}
30... h5 {[%clk 0:01:54]} 31. Qg2 {[%clk 0:00:56.5]} 31... Qe3+ {[%clk
0:01:52.5]} 32. Qf2 {[%clk 0:00:52.2]} 32... Qxc3 {[%clk 0:01:50.3]} 33. Kh1
{[%clk 0:00:30.3]} 33... Bxd4 {[%clk 0:01:46.4]} 34. Qe2 {[%clk 0:00:28.8]}
34... Qd3 {[%clk 0:00:43.9]} 35. Qxd3 {[%clk 0:00:21.6]} 35... cxd3 {[%clk
0:00:44.8]} 36. Nb3 {[%clk 0:00:21.5]} 36... Be3 {[%clk 0:00:40.7]} 37. Bxa5
{[%clk 0:00:21.5]} 37... Bxf4 {[%clk 0:00:41.1]} 38. Bc3+ {[%clk 0:00:22.5]}
38... Kh7 {[%clk 0:00:34.1]} 39. Bxb2 {[%clk 0:00:23.7]} 39... Bxg5 {[%clk
0:00:36]} 40. Rd1 {[%clk 0:00:24.7]} 40... Bf6 {[%clk 0:00:35.8]} 41. Bxf6
{[%clk 0:00:23.9]} 1-0

[Event "*** Titled Tuesday Blitz"]
[Site "Chess.com"]
[Date "2019.10.01"]
[Round "2"]
[White "harvsp123"]
[Black "HanSchut"]
[Result "1-0"]
[WhiteElo "2480"]
[BlackElo "2197"]
[TimeControl "180+2"]
[EndTime "13:22:40 PDT"]
[Termination "harvsp123 won by resignation"]

1. d4 {[%clk 0:03:01.9]} 1... Nf6 {[%clk 0:03:00.3]} 2. c4 {[%clk 0:02:59.8]}
2... g6 {[%clk 0:03:01.8]} 3. Nc3 {[%clk 0:03:00]} 3... d5 {[%clk 0:03:03.2]} 4.
cxd5 {[%clk 0:03:01.6]} 4... Nxd5 {[%clk 0:03:05.1]} 5. e4 {[%clk 0:03:03.3]}
5... Nxc3 {[%clk 0:03:05.8]} 6. bxc3 {[%clk 0:03:05.2]} 6... Bg7 {[%clk
0:03:07.5]} 7. Nf3 {[%clk 0:03:02.3]} 7... c5 {[%clk 0:03:08.3]} 8. h3 {[%clk
0:03:01.3]} 8... O-O {[%clk 0:03:03.6]} 9. Be2 {[%clk 0:03:01.8]} 9... cxd4
{[%clk 0:02:49.6]} 10. cxd4 {[%clk 0:03:01.9]} 10... Nc6 {[%clk 0:02:51.4]} 11.
Be3 {[%clk 0:03:02.6]} 11... Qa5+ {[%clk 0:02:52.2]} 12. Bd2 {[%clk 0:03:02.9]}
12... Qa3 {[%clk 0:02:42.5]} 13. d5 {[%clk 0:03:03.8]} 13... Ne5 {[%clk
0:02:09]} 14. Rb1 {[%clk 0:02:24.9]} 14... Nxf3+ {[%clk 0:01:32.7]} 15. Bxf3
{[%clk 0:02:25.1]} 15... b6 {[%clk 0:01:18.1]} 16. O-O {[%clk 0:02:21.7]} 16...
Ba6 {[%clk 0:01:19.1]} 17. Bb4 {[%clk 0:01:55.3]} 17... Qxa2 {[%clk 0:01:12.7]}
18. Re1 {[%clk 0:01:54]} 18... Rfe8 {[%clk 0:01:07.7]} 19. e5 {[%clk 0:01:45.4]}
19... Qc4 {[%clk 0:01:02.6]} 20. d6 {[%clk 0:01:11.6]} 20... Rad8 {[%clk
0:00:57.7]} 21. Be2 {[%clk 0:00:53.8]} 21... Qc8 {[%clk 0:00:51.5]} 22. Rc1
{[%clk 0:00:53.2]} 22... Qb7 {[%clk 0:00:50.4]} 23. Rc7 {[%clk 0:00:42.9]} 23...
Qxc7 {[%clk 0:00:48]} 24. dxc7 {[%clk 0:00:43]} 24... Rxd1 {[%clk 0:00:49.9]}
25. Rxd1 {[%clk 0:00:44]} 25... Rc8 {[%clk 0:00:34.4]} 26. Rd8+ {[%clk
0:00:43.3]} 26... Bf8 {[%clk 0:00:34.8]} 27. Bxa6 {[%clk 0:00:23.4]} 27... Rxc7
{[%clk 0:00:36]} 28. Kh2 {[%clk 0:00:22.9]} 28... Kg7 {[%clk 0:00:37.1]} 29. f4
{[%clk 0:00:21.5]} 29... Rc2 {[%clk 0:00:35.9]} 30. Rd7 {[%clk 0:00:21.1]} 30...
Rb2 {[%clk 0:00:35.4]} 31. Bxe7 {[%clk 0:00:21.5]} 31... Bxe7 {[%clk 0:00:36.3]}
32. Rxe7 {[%clk 0:00:23.4]} 32... Rb4 {[%clk 0:00:37]} 33. Kg3 {[%clk
0:00:22.4]} 33... Rb3+ {[%clk 0:00:37.8]} 34. Kf2 {[%clk 0:00:23.1]} 34... Rb4
{[%clk 0:00:38.9]} 35. g3 {[%clk 0:00:23.3]} 35... Rb2+ {[%clk 0:00:40.1]} 36.
Ke3 {[%clk 0:00:22.1]} 36... Rb3+ {[%clk 0:00:42]} 37. Ke4 {[%clk 0:00:22.8]}
37... Rb4+ {[%clk 0:00:43.3]} 38. Ke3 {[%clk 0:00:22.6]} 38... Rb3+ {[%clk
0:00:44.8]} 39. Kd4 {[%clk 0:00:23.8]} 39... Kf8 {[%clk 0:00:45.8]} 40. Rxa7
{[%clk 0:00:24.1]} 40... Rxg3 {[%clk 0:00:47.2]} 41. Bc4 {[%clk 0:00:24.4]}
41... Rxh3 {[%clk 0:00:40.1]} 42. Rxf7+ {[%clk 0:00:25.6]} 42... Ke8 {[%clk
0:00:41.6]} 43. e6 {[%clk 0:00:26.5]} 43... Rh4 {[%clk 0:00:41.8]} 44. Bb5+
{[%clk 0:00:24.1]} 44... Kd8 {[%clk 0:00:43.3]} 45. e7+ {[%clk 0:00:24.5]} 1-0

[Event "*** Titled Tuesday Blitz"]
[Site "Chess.com"]
[Date "2019.10.01"]
[Round "2"]
[White "monalize"]
[Black "GHANDEEVAM2003"]
[Result "0-1"]
[WhiteElo "2399"]
[BlackElo "2984"]
[TimeControl "180+2"]
[EndTime "13:22:43 PDT"]
[Termination "GHANDEEVAM2003 won on time"]

1. e4 {[%clk 0:03:01.9]} 1... c5 {[%clk 0:02:59.6]} 2. Nf3 {[%clk 0:03:01.7]}
2... Nc6 {[%clk 0:02:57.5]} 3. d4 {[%clk 0:03:02.2]} 3... cxd4 {[%clk
0:02:59.4]} 4. Nxd4 {[%clk 0:03:02.8]} 4... Nf6 {[%clk 0:02:59.8]} 5. Nc3 {[%clk
0:03:02.7]} 5... e5 {[%clk 0:02:57.7]} 6. Ndb5 {[%clk 0:03:03.3]} 6... d6 {[%clk
0:02:59]} 7. Bg5 {[%clk 0:03:00.5]} 7... a6 {[%clk 0:02:58.7]} 8. Bxf6 {[%clk
0:03:00.5]} 8... gxf6 {[%clk 0:03:00.6]} 9. Na3 {[%clk 0:03:01.1]} 9... b5
{[%clk 0:03:01.7]} 10. Nd5 {[%clk 0:03:00.8]} 10... f5 {[%clk 0:03:02.4]} 11. c4
{[%clk 0:02:58.8]} 11... fxe4 {[%clk 0:02:47.4]} 12. cxb5 {[%clk 0:02:57]} 12...
Nd4 {[%clk 0:02:43.5]} 13. Nc4 {[%clk 0:02:09.6]} 13... axb5 {[%clk 0:02:30.2]}
14. Ncb6 {[%clk 0:02:08.9]} 14... Bh6 {[%clk 0:01:07.1]} 15. Nxa8 {[%clk
0:01:41.4]} 15... e3 {[%clk 0:01:04.9]} 16. Nac7+ {[%clk 0:01:36]} 16... Kf8
{[%clk 0:01:05.6]} 17. fxe3 {[%clk 0:01:30.7]} 17... Qh4+ {[%clk 0:01:06]} 18.
g3 {[%clk 0:01:28.1]} 18... Qe4 {[%clk 0:01:06.4]} 19. Rg1 {[%clk 0:01:00.8]}
19... Nc2+ {[%clk 0:00:53.1]} 20. Kf2 {[%clk 0:00:56.8]} 20... Bxe3+ {[%clk
0:00:40.3]} 21. Nxe3 {[%clk 0:00:52.3]} 21... Qxe3+ {[%clk 0:00:42.2]} 22. Kg2
{[%clk 0:00:52.8]} 22... Bb7+ {[%clk 0:00:43.5]} 23. Nd5 {[%clk 0:00:26.6]}
23... Qe4+ {[%clk 0:00:44.5]} 24. Kh3 {[%clk 0:00:26.8]} 24... Bxd5 {[%clk
0:00:31.2]} 25. Bd3 {[%clk 0:00:20.3]} 25... Be6+ {[%clk 0:00:32.3]} 26. g4
{[%clk 0:00:21.5]} 26... Qe3+ {[%clk 0:00:33]} 27. Rg3 {[%clk 0:00:21.8]} 27...
Qh6+ {[%clk 0:00:34.5]} 28. Kg2 {[%clk 0:00:20.7]} 28... Ne3+ {[%clk 0:00:36]}
29. Rxe3 {[%clk 0:00:20.9]} 29... Qxe3 {[%clk 0:00:37.9]} 30. Qe2 {[%clk
0:00:20.6]} 30... Qd4 {[%clk 0:00:25.1]} 31. h3 {[%clk 0:00:19.2]} 31... h5
{[%clk 0:00:25.4]} 32. g5 {[%clk 0:00:19.2]} 32... Rg8 {[%clk 0:00:25.3]} 33.
Rf1 {[%clk 0:00:15.7]} 33... Rxg5+ {[%clk 0:00:25.5]} 34. Kh2 {[%clk 0:00:16.9]}
34... Kg7 {[%clk 0:00:21]} 35. Bxb5 {[%clk 0:00:15.7]} 35... e4 {[%clk
0:00:21.2]} 36. b3 {[%clk 0:00:14.1]} 36... Qe5+ {[%clk 0:00:22.3]} 37. Kh1
{[%clk 0:00:14.9]} 37... Bxh3 {[%clk 0:00:22.9]} 38. Rg1 {[%clk 0:00:14.6]}
38... Bg4 {[%clk 0:00:23.7]} 39. Qf2 {[%clk 0:00:14.4]} 39... Bf3+ {[%clk
0:00:24.4]} 0-1

[Event "*** Titled Tuesday Blitz"]
[Site "Chess.com"]
[Date "2019.10.01"]
[Round "2"]
[White "ckgchess"]
[Black "Mr_Sinigami"]
[Result "1-0"]
[WhiteElo "2710"]
[BlackElo "2375"]
[TimeControl "180+2"]
[EndTime "13:23:02 PDT"]
[Termination "ckgchess won by resignation"]

1. e4 {[%clk 0:02:58.8]} 1... c5 {[%clk 0:03:00.2]} 2. Nf3 {[%clk 0:02:58.8]}
2... e6 {[%clk 0:03:01.1]} 3. c3 {[%clk 0:02:59.1]} 3... Nf6 {[%clk 0:03:00.3]}
4. e5 {[%clk 0:03:00.3]} 4... Nd5 {[%clk 0:03:01.4]} 5. d4 {[%clk 0:03:02.2]}
5... cxd4 {[%clk 0:03:02.5]} 6. Qxd4 {[%clk 0:03:02.8]} 6... Nc6 {[%clk
0:03:00.1]} 7. Qe4 {[%clk 0:03:04.3]} 7... d6 {[%clk 0:03:00.6]} 8. Nbd2 {[%clk
0:03:04.5]} 8... dxe5 {[%clk 0:02:56.9]} 9. Nxe5 {[%clk 0:03:02.1]} 9... Nxe5
{[%clk 0:02:57.3]} 10. Qxe5 {[%clk 0:03:04]} 10... Qc7 {[%clk 0:02:57.1]} 11.
Bb5+ {[%clk 0:03:04.7]} 11... Bd7 {[%clk 0:02:57]} 12. Bxd7+ {[%clk 0:03:05.9]}
12... Qxd7 {[%clk 0:02:57.2]} 13. O-O {[%clk 0:03:06.8]} 13... Qc7 {[%clk
0:02:51.3]} 14. Qg5 {[%clk 0:02:52.9]} 14... Qf4 {[%clk 0:02:48.5]} 15. Nf3
{[%clk 0:02:45.3]} 15... Qxg5 {[%clk 0:02:48.3]} 16. Bxg5 {[%clk 0:02:47.2]}
16... h6 {[%clk 0:02:47.3]} 17. Bd2 {[%clk 0:02:46.9]} 17... f6 {[%clk
0:02:30.7]} 18. c4 {[%clk 0:02:46.9]} 18... Nb4 {[%clk 0:02:24]} 19. a3 {[%clk
0:02:43.9]} 19... Nd3 {[%clk 0:02:16.9]} 20. b4 {[%clk 0:02:39.4]} 20... Be7
{[%clk 0:02:15.1]} 21. Be3 {[%clk 0:02:35.5]} 21... Kf7 {[%clk 0:02:13.9]} 22.
Rfd1 {[%clk 0:02:34.8]} 22... Rhd8 {[%clk 0:02:14.1]} 23. Rd2 {[%clk 0:02:35.7]}
23... e5 {[%clk 0:02:00.8]} 24. Rad1 {[%clk 0:02:28.2]} 24... Nb2 {[%clk
0:01:54.6]} 25. Rxd8 {[%clk 0:02:25.3]} 25... Rxd8 {[%clk 0:01:56.1]} 26. Rxd8
{[%clk 0:02:25.5]} 26... Bxd8 {[%clk 0:01:56.9]} 27. Nd2 {[%clk 0:02:24.9]}
27... a6 {[%clk 0:01:52.2]} 28. Kf1 {[%clk 0:02:26]} 28... Ke6 {[%clk
0:01:48.5]} 29. Ke2 {[%clk 0:02:26.3]} 29... b5 {[%clk 0:01:47.8]} 30. c5 {[%clk
0:02:23.3]} 30... Kd5 {[%clk 0:01:48.6]} 31. f4 {[%clk 0:02:20.7]} 31... Bc7
{[%clk 0:01:43.9]} 32. fxe5 {[%clk 0:02:20.9]} 32... Bxe5 {[%clk 0:01:37.3]} 33.
h4 {[%clk 0:02:17.7]} 33... h5 {[%clk 0:01:33.7]} 34. Bf2 {[%clk 0:02:10.6]}
34... Bc3 {[%clk 0:01:26.5]} 35. Nb1 {[%clk 0:01:49.2]} 35... Be5 {[%clk
0:01:12.6]} 36. Nd2 {[%clk 0:01:49.8]} 36... Bc7 {[%clk 0:01:09.4]} 37. Nf1
{[%clk 0:01:14]} 37... Bf4 {[%clk 0:01:04]} 38. Kf3 {[%clk 0:00:49.9]} 38... Be5
{[%clk 0:00:34.5]} 39. Ne3+ {[%clk 0:00:50.5]} 39... Kc6 {[%clk 0:00:34.8]} 40.
Nf5 {[%clk 0:00:43.1]} 40... Nc4 {[%clk 0:00:33.2]} 41. Nxg7 {[%clk 0:00:36.5]}
41... Nxa3 {[%clk 0:00:34]} 42. Nf5 {[%clk 0:00:29.1]} 42... Nc2 {[%clk
0:00:32.8]} 43. g4 {[%clk 0:00:29.9]} 43... Kd7 {[%clk 0:00:17]} 44. gxh5 {[%clk
0:00:29.9]} 44... Ke6 {[%clk 0:00:17.8]} 45. h6 {[%clk 0:00:30]} 1-0